Cogmind - Beta 13 X1 @@@ ROGUE MODE // 2023.11.04 @ 15:09:27 Player: kasaphescent Result: Destroyed by X-77 Beamer with Gatling Laser Performance ------------- Evolutions (7) 3500 Regions Visited (17) 3400 Robots Destroyed (135) 675 Value Destroyed (6192) 6192 Prototype IDs (26) 520 Alien Tech Used (0) 0 Bonus (4032) 4032 TOTAL SCORE: 18319 Bonus ------- Pacifist 200 High Alert Combat Kills 320 Follower Combat Kills 2091 Network Hubs Disabled 200 Met Zhirov 300 Built Enhanced Grunts 300 Met R17 at Cetus 500 Read Decrypted Archives 300 Friendly Fire -179 Cogmind --------- Core Integrity 0/1300 Matter 63/300 Energy 92/100 System Corruption 0% Temperature Cool (43) Movement Core (50) Location -3/Testing Parts ------- > --- POWER (2) -------- (None) > --- PROPULSION (4) --- (None) > --- UTILITY (8) ------ (None) > --- WEAPON (7) ------- (None) > --- INVENTORY (5) ---- Particle Reactor Centrium Medium Armor Plating Perforator Neutron Missile Launcher Peak State ------------ > --- POWER ------------ Cold Fusion Reactor Neutrino Core > --- PROPULSION ------- Improved Treads Improved Treads Centrium Heavy Treads > --- UTILITY ---------- Advanced Cooling System Improved Coolant Injector High-capacity Storage Unit Experimental Targeting Computer Centrium Medium Armor Plating Centrium Medium Armor Plating > --- WEAPON ----------- Heavy Laser Wave Gun Wave Gun Wave Gun Gauss Rifle KE Penetrator KE Penetrator > --- INVENTORY -------- Micro Fission Core Micro Fission Core Improved Treads Flexi-carbon Leg Improved Coolant Injector Advanced Coolant Injector Advanced Coolant Injector Advanced Coolant Injector Advanced Coolant Injector Improved Matter Compressor Improved Thermal Shield Advanced Assault Cannon Advanced Assault Cannon Advanced Assault Cannon Advanced Assault Cannon Advanced Assault Cannon Antimatter Cannon Heavy Rocket Launcher Phasing Sabre [Rating: 119] Favorites ----------- Power Light Angular Momentum Engine Engine Light Angular Momentum Engine Power Core Neutrino Core Reactor Cold Fusion Reactor Propulsion Light Treads Treads Light Treads Leg Flexi-carbon Leg Wheel Armored Huge Wheel Flight Unit Diametric Drive Utility Improved Cooling System Device Improved Cooling System Storage Large Storage Unit Processor Enhanced Optical Array Protection Centrium Medium Armor Plating Weapon KE Penetrator Energy Gun Beamcaster Energy Cannon EMDS Ballistic Gun KE Penetrator Ballistic Cannon Advanced Assault Cannon Launcher Heavy Rocket Launcher Impact Weapon Shock Maul Slashing Weapon Phasing Sabre Build | -11 -10 -9 -8 -7 -7 -7 -7 -6 -6 -6 -6 -6 -6 -5 -4 -3 -3 ------- Run | Jun Mat Mat Mat Fac Low Low Zio Pro Fac Ext Cet Arc Hub Fac Fac Res Tes Slots Evolved 14 | . . 2 2 2 . . . . 2 . . . . 2 2 2 . Power 1 | . . . . . . . . . . . . . . 1 . . . Propulsion 2 | . . . . . . . . . 1 . . . . 1 . . . Utility 6 | . . . . 1 . . . . 1 . . . . . 2 2 . Weapon 5 | . . 2 2 1 . . . . . . . . . . . . . Parts Attached 180 | 6 3 12 10 7 7 4 4 4 18 4 7 . 14 24 38 8 10 Power 13 | 1 . 3 . 1 . 1 . . 1 . . . . 2 4 . . Engine 7 | 1 . 3 . 1 . 1 . . 1 . . . . . . . . Core 4 | . . . . . . . . . . . . . . . 4 . . Reactor 2 | . . . . . . . . . . . . . . 2 . . . Propulsion 36 | 2 1 1 2 . 2 . . 2 2 . 1 . 2 2 12 2 5 Treads 15 | 1 1 . 2 . 2 . . 1 1 . 1 . 1 . 3 2 . Leg 9 | . . . . . . . . . . . . . . 1 6 . 2 Wheel 7 | 1 . 1 . . . . . 1 1 . . . 1 1 1 . . Hover . | . . . . . . . . . . . . . . . . . . Flight 5 | . . . . . . . . . . . . . . . 2 . 3 Utility 43 | 1 . 3 1 4 2 . 1 . 5 2 1 . 7 5 9 2 . Device 13 | . . . . 2 . . . . 1 1 . . 3 1 4 1 . Storage 7 | 1 . 2 . . . . . . . . . . 1 2 1 . . Processor 5 | . . 1 1 . . . . . 1 . . . 1 . . 1 . Hackware . | . . . . . . . . . . . . . . . . . . Protection 18 | . . . . 2 2 . 1 . 3 1 1 . 2 2 4 . . Artifact . | . . . . . . . . . . . . . . . . . . Weapon 88 | 2 2 5 7 2 3 3 3 2 10 2 5 . 5 15 13 4 5 Energy Gun 28 | . . 3 3 1 2 . . 1 5 . 1 . 2 7 2 1 . Energy Cannon 1 | . . . . . . . . . . . . . . 1 . . . Ballistic Gun 35 | 2 2 2 4 1 1 3 3 1 4 1 4 . 1 3 3 . . Ballistic Cannon 17 | . . . . . . . . . . . . . 1 4 6 2 4 Launcher 3 | . . . . . . . . . . . . . . . 2 1 . Special Weapon . | . . . . . . . . . . . . . . . . . . Impact Weapon 1 | . . . . . . . . . . . . . . . . . 1 Slashing Weapon 3 | . . . . . . . . . 1 1 . . 1 . . . . Piercing Weapon . | . . . . . . . . . . . . . . . . . . Special Melee Weapon . | . . . . . . . . . . . . . . . . . . Unidentified Prototypes 25 | . . 2 3 1 . . . . 2 . 4 . 2 3 3 1 4 Corrupted Parts 3 | . . . . . . . . . . . 1 . 2 . . . . System Corruption 27 | . . . . . . . . . . . 8 . 19 . . . . Parts Lost 60 | . . . . . 4 . . 5 2 . 1 . 14 7 22 2 3 Power 5 | . . . . . . . . 1 . . . . 1 . 3 . . Propulsion 16 | . . . . . 2 . . 2 . . . . 2 1 4 2 3 Utility 6 | . . . . . 1 . . . . . . . 3 1 1 . . Weapon 33 | . . . . . 1 . . 2 2 . 1 . 8 5 14 . . Highest Loss Streak 14 | . . . . . 2 . . 5 2 . 1 . 14 4 13 2 3 To Critical Strikes 4 | . . . . . . . . . . . . . . . 4 . . Average Slot Usage (%) 88 | . 84 93 100 100 99 99 100 97 92 93 93 93 88 80 82 7 6 Engine 5 | . 14 10 9 7 7 7 7 5 5 6 6 6 5 . . . . Reactor 1 | . . . . . . . . . . . . . . 9 6 . . Treads 9 | . 14 11 9 7 14 15 15 13 6 6 7 13 11 5 8 . . Wheel 3 | . 14 11 9 7 . . . . 6 6 4 . . 4 . . . Device 5 | . . . . 6 7 7 7 7 8 6 6 6 6 3 10 2 . Storage 6 | . 14 11 9 7 7 7 7 7 6 6 6 6 6 5 4 . . Processor 3 | . . 7 9 . . . . . 3 6 6 6 6 7 4 2 . Protection 5 | . . . . 7 6 7 7 7 5 6 6 6 5 4 6 . . Energy Gun 16 | . . 19 15 15 19 23 20 13 7 20 20 26 23 16 16 . . Ballistic Gun 24 | . 27 22 38 38 33 29 32 38 38 25 25 20 18 4 11 . . Ballistic Cannon 1 | . . . . . . . . . . . . . . 10 1 . 1 Naked Turns 102 | . . . . . . . . . . . . . . . 2 66 34 Heaviest Build 137 | 11 11 39 45 61 65 66 60 56 67 71 76 76 96 131 137 7 12 Greatest Support 126 | 10 10 16 16 16 40 40 40 40 28 28 108 108 108 80 126 7 12 Greatest Overweight (x) 7 | 1 1 2 2 3 3 1 1 5 2 2 2 . 2 4 7 . 3 Average Overweight (x) 1 | . . 1 2 3 1 1 1 1 1 2 1 . . 2 . . . Largest Inventory Capacity 20 | 8 8 15 15 15 15 15 15 15 15 15 15 15 20 20 20 5 5 Average Capacity 15 | 6 8 9 15 15 15 15 15 15 15 15 15 15 17 20 19 5 5 Most Carried 20 | 6 6 10 15 15 15 15 15 15 15 15 15 15 15 15 20 5 5 Average Carried 13 | 3 6 8 13 14 14 14 14 14 14 14 14 15 14 12 16 4 4 Final Capacity 20 | 8 8 15 15 15 15 15 15 15 15 15 15 15 20 20 5 5 5 Final Carried 15 | 6 6 10 15 15 15 15 15 13 15 15 15 15 11 13 5 5 5 Class Distribution -------------------- 39% | Scavenger-Executioner 21% | Derelict-Executioner 15% | Executioner 8% | Mutant 6% | Scavenger-Mutant 3% | Gunner Dominant Class ---------------- Mutant | -10/Materials Gunner | -9/Materials Executioner | -8/Materials Executioner | -7/Factory Executioner | -7/Lower Caves Executioner | -7/Lower Caves Scavenger-Executioner | -7/Zion Derelict-Executioner | -6/Proximity Caves Derelict-Executioner | -6/Factory Derelict-Executioner | -6/Extension Scavenger-Executioner | -6/Cetus Scavenger-Executioner | -6/Archives Scavenger-Executioner | -6/Hub_04(d) Scavenger-Executioner | -5/Factory Scavenger-Executioner | -4/Factory Mutant | -3/Research Mutant | -3/Testing Resources | -11 -10 -9 -8 -7 -7 -7 -7 -6 -6 -6 -6 -6 -6 -5 -4 -3 -3 ----------- Run | Jun Mat Mat Mat Fac Low Low Zio Pro Fac Ext Cet Arc Hub Fac Fac Res Tes Matter Collected 5450 | 228 . 293 372 278 340 51 52 358 695 468 242 . 255 939 596 47 236 Remotely . | . . . . . . . . . . . . . . . . . . Salvage Created 6074 | . . 393 396 285 626 70 . 359 593 623 206 . 139 1227 1063 . 94 Parts 297 | . . 29 28 18 21 8 . 8 33 17 13 . 10 50 56 . 6 Haulers Intercepted 6 | . . 1 2 . . . . . 2 . . . . . 1 . . Recyclers Shooed 2 | . . . . . . . . . 2 . . . . . . . . Parts Field Recycled . | . . . . . . . . . . . . . . . . . . Retrieved Matter . | . . . . . . . . . . . . . . . . . . Parts Self-Destructed 36 | . . . . . 22 7 . 7 . . . . . . . . . Prevented 9 | . . . . . 8 . . 1 . . . . . . . . . Kills | -11 -10 -9 -8 -7 -7 -7 -7 -6 -6 -6 -6 -6 -6 -5 -4 -3 -3 ------- Run | Jun Mat Mat Mat Fac Low Low Zio Pro Fac Ext Cet Arc Hub Fac Fac Res Tes Combat Hostiles Destroyed 115 | . . 7 10 8 13 4 . 7 10 8 3 . 1 21 21 . 2 Guns 101 | . . 7 10 8 13 4 . 7 10 8 3 . 1 14 16 . . Cannons 7 | . . . . . . . . . . . . . . 5 . . 2 AOE 5 | . . . . . . . . . . . . . . . 5 . . Classes Destroyed 17 | . . 6 1 1 3 1 . . 1 . . . . 1 3 . . Worker 5 | . . . . . . . . . 2 . . . 2 . . . 1 Hauler 6 | . . 1 2 . . . . . 2 . . . . . 1 . . Recycler 2 | . . 1 . . . . . . . 1 . . . . . . . Mechanic 2 | . . . . . . . . . . . . . . . 2 . . Operator 2 | . . 1 . . . . . . . . . . . 1 . . . Watcher 3 | . . . . . . . . . . . . . . 3 . . . Swarmer 33 | . . 3 6 4 4 3 . . 4 . . . . 3 4 . 2 Cutter 2 | . . . . . . . . . . . . . . . 2 . . Grunt 33 | . . 2 1 3 1 . . 7 2 6 . . . 7 4 . . Brawler 4 | . . . . . 3 . . . 1 . . . . . . . . Duelist 2 | . . . . . 2 . . . . . . . . . . . . Protector 1 | . . . . . . . . . . . . . . . 1 . . Sentry 11 | . . 2 2 . 1 . . . 1 2 . . . 1 2 . . Hunter 8 | . . . 1 . . . . . . . . . . 3 4 . . Programmer 14 | . . . . 1 . . . . 2 . . . . 7 4 . . Cetus Guard 3 | . . . . . . . . . . . 3 . . . . . . Lightning 1 | . . . . . . . . . . . . . 1 . . . . Thief 1 | . . . . . . 1 . . . . . . . . . . . Thug 1 | . . . . . 1 . . . . . . . . . . . . Fireman 1 | . . . . . 1 . . . . . . . . . . . . Best Kill Streak 10 | . . 6 3 6 6 3 . 4 6 3 2 . 2 6 10 . 3 Combat Bots Only 10 | . . 3 3 6 6 3 . 4 4 3 2 . 1 6 10 . 2 Max Kills in Single Turn 3 | . . 2 1 2 2 2 . 1 2 2 2 . 1 3 3 . 1 Gunslinging 2 | . . 1 . 1 1 1 . . . 1 1 . . 2 . . . Exploded 3 | . . . . . . . . . . . . . . . 3 . . Melee . | . . . . . . . . . . . . . . . . . . Uniques/NPCs Destroyed . | . . . . . . . . . . . . . . . . . . Combat | -11 -10 -9 -8 -7 -7 -7 -7 -6 -6 -6 -6 -6 -6 -5 -4 -3 -3 -------- Run | Jun Mat Mat Mat Fac Low Low Zio Pro Fac Ext Cet Arc Hub Fac Fac Res Tes Damage Taken 15504 | . 195 177 207 119 1120 106 . 775 282 341 166 . 3635 1955 4477 1339 610 Core 3235 | . 42 28 34 28 183 17 . 76 31 45 . . 286 199 964 1097 205 Absorbed by Shields 200 | . . . . . . . . . . 189 11 . . . . . . Reduced by Siege Mode 130 | . . . . . . . . . . . . . 99 26 5 . . Ignored by Resistances 1318 | . . . . . . . . . . . . . . . 1318 . . Core Remaining (%) 72 | 100 83 93 93 . . . . 56 . . . . 57 80 16 . . Volleys Fired 257 | . 3 15 18 12 19 5 1 16 19 16 8 . 14 55 38 2 16 Largest 7 | . 2 4 6 7 7 7 1 7 7 7 7 . 7 7 7 1 1 Hottest 415 | . 40 155 254 230 272 306 33 281 302 324 331 . 390 415 406 66 100 Shots Fired 1193 | . 6 54 86 84 128 33 1 81 120 106 45 . 68 188 175 2 16 Gun 1115 | . 6 54 86 84 128 33 1 81 120 106 45 . 68 165 138 . . Cannon 73 | . . . . . . . . . . . . . . 23 32 2 16 Launcher 5 | . . . . . . . . . . . . . . . 5 . . Special . | . . . . . . . . . . . . . . . . . . Kinetic 714 | . 6 30 62 60 80 18 1 64 102 60 31 . 32 53 97 2 16 Thermal 450 | . . 24 24 24 48 15 . 13 18 46 14 . 36 115 73 . . Explosive 5 | . . . . . . . . . . . . . . . 5 . . Electromagnetic 24 | . . . . . . . . 4 . . . . . 20 . . . Robot Hit Streak 32 | . 3 11 8 7 7 4 . 6 7 13 8 . 8 10 32 . 4 Robot Miss Streak 12 | . 2 7 8 6 7 4 . 12 8 6 2 . 2 3 4 . 11 Penetration Max 1 | . . . . . . . . . . . . . 1 1 1 . 1 Secondary Targets 27 | . . 1 . 2 6 2 . 4 2 3 2 . . 4 1 . . Max Gunslinging Chain 2 | . . 1 . 1 1 1 . 1 1 1 2 . . 2 1 . . Shots Hit Robots 707 | . 3 29 40 42 76 18 . 51 64 68 34 . 35 125 115 . 7 Core Hits 403 | . 1 16 26 19 42 12 . 41 45 46 18 . 16 42 69 . 10 Critical Kills 6 | . . . 1 . . . . . 1 . . . 1 . . . 3 Critical Parts Destroyed 7 | . . . . . 1 . . . . 1 . . . . . . 5 Critical Strikes 39 | . . 1 1 2 2 1 . 1 4 3 1 . 1 8 6 . 8 Burn 20 | . . 1 . 2 1 1 . 1 3 2 . . . 7 2 . . Destroy 14 | . . . 1 . 1 . . . 1 1 1 . 1 . . . 8 Blast 4 | . . . . . . . . . . . . . . . 4 . . Corrupt 1 | . . . . . . . . . . . . . . 1 . . . Melee Attacks 8 | . . . . . . . . . 1 3 . . 4 . . . . Impact . | . . . . . . . . . . . . . . . . . . Slashing 8 | . . . . . . . . . 1 3 . . 4 . . . . Piercing . | . . . . . . . . . . . . . . . . . . Sneak Attacks 1 | . . . . . . . . . . . . . 1 . . . . Combat Hostiles . | . . . . . . . . . . . . . . . . . . Follow-up Attacks . | . . . . . . . . . . . . . . . . . . Damage Inflicted 17514 | . 29 366 542 742 1348 355 . 1042 1413 1660 833 . 1223 3372 4512 4 73 Guns 13898 | . 29 366 542 742 1348 355 . 1042 1413 1660 833 . 885 2311 2372 . . Cannons 1572 | . . . . . . . . . . . . . . 1061 438 . 73 Explosions 1955 | . . . . . . . . . . . . . 266 . 1689 . . Melee 72 | . . . . . . . . . . . . . 72 . . . . Ramming 17 | . . . . . . . . . . . . . . . 13 4 . Kinetic 8132 | . 29 134 356 571 910 182 . 833 1167 911 585 . 404 754 1223 . 73 Thermal 6891 | . . 232 186 171 438 173 . 167 246 749 248 . 481 1704 2096 . . Explosive 1180 | . . . . . . . . . . . . . . . 1180 . . Electromagnetic 1222 | . . . . . . . . 42 . . . . 266 914 . . . Impact . | . . . . . . . . . . . . . . . . . . Slashing 72 | . . . . . . . . . . . . . 72 . . . . Piercing . | . . . . . . . . . . . . . . . . . . Highest Corruption 70 | . . . . . . . . . 1 1 9 9 70 9 7 . . Average Corruption 4 | . . . . . . . . . 1 1 2 9 10 6 3 . . Corruption Purged 5 | . . . . . . . . . . . . . 5 . . . . Corruption Blocked . | . . . . . . . . . . . . . . . . . . Effects 96 | . . . . . . . . . 4 6 7 3 30 34 12 . . Message Errors 24 | . . . . . . . . . 1 2 3 2 2 10 4 . . Matter Fused 20 | . . . . . . . . . 1 1 3 1 6 8 . . . Heat Flow Errors 11 | . . . . . . . . . 1 1 . . 3 4 2 . . Energy Discharges 9 | . . . . . . . . . . 1 1 . 4 1 2 . . Parts Rejected 1 | . . . . . . . . . . . . . 1 . . . . Parts Fused 1 | . . . . . . . . . . . . . . . 1 . . Data Loss (minor) 9 | . . . . . . . . . . 1 . . 3 3 2 . . Data Loss (major) 4 | . . . . . . . . . . . . . . 4 . . . Misfires 3 | . . . . . . . . . . . . . 3 . . . . Alerts 3 | . . . . . . . . . . . . . 3 . . . . Misdirections 2 | . . . . . . . . . . . . . 2 . . . . Weapon Failures 9 | . . . . . . . . . 1 . . . 3 4 1 . . Overload Shots . | . . . . . . . . . . . . . . . . . . Overflow Damage 48 | . . . . . . . . . . . . . . 48 . . . Projectiles 48 | . . . . . . . . . . . . . . 48 . . . Explosions . | . . . . . . . . . . . . . . . . . . Melee . | . . . . . . . . . . . . . . . . . . Knockbacks 11 | . . . . . . . . . . . . . . . 5 . 6 Impact . | . . . . . . . . . . . . . . . . . . Kinetic 8 | . . . . . . . . . . . . . . . 4 . 4 Secondary 3 | . . . . . . . . . . . . . . . 1 . 2 Self-Inflicted Damage 96 | . . . . . . . . . . . . . 94 . . 2 . Shots 1 | . . . . . . . . . . . . . 1 . . . . Rammed 6 | . . . . . . . . . . . . . 1 . 1 4 . Targets Rammed 6 | . . . . . . . . . . . . . 1 . 1 4 . Kicked . | . . . . . . . . . . . . . . . . . . Crushed . | . . . . . . . . . . . . . . . . . . Highest Temperature 643 | . 9 241 334 153 643 380 . 418 272 421 168 . 336 530 343 21 20 Average Temperature 136 | . 8 71 117 70 249 159 . 148 106 150 59 . 121 176 114 21 9 Received Heat Transfer 2193 | . 126 48 18 27 337 . . 409 9 122 . . 246 216 207 286 142 Effects 23 | . . . . . 9 . . 4 3 1 . . . 6 . . . Shutdowns 4 | . . . . . 3 . . . . . . . . 1 . . . Energy Bleed 4 | . . . . . 2 . . 1 . . . . . 1 . . . Interference 6 | . . . . . . . . 3 3 . . . . . . . . Matter Decay 1 | . . . . . . . . . . 1 . . . . . . . Short Circuit 1 | . . . . . 1 . . . . . . . . . . . . Damage (minor) 2 | . . . . . 2 . . . . . . . . . . . . Damage (major) 4 | . . . . . . . . . . . . . . 4 . . . Damage (core) 1 | . . . . . 1 . . . . . . . . . . . . Siege Activations 6 | . . . . . . . . . . . . . 1 2 3 . . Total Turns 120 | . . . . . . . . . . . . . 40 41 39 . . Longest Duration 40 | . . . . . . . . . . . . . 40 22 21 . . Robots Corrupted . | . . . . . . . . . . . . . . . . . . Combat Hostiles . | . . . . . . . . . . . . . . . . . . Parts Fried 8 | . . . . . . . . . . . . . . 8 . . . Impact Corruptions . | . . . . . . . . . . . . . . . . . . Robots Melted 2 | . . . . . . . . . . . . . . 2 . . . Combat Hostiles 2 | . . . . . . . . . . . . . . 2 . . . Parts Melted 31 | . . 2 . 1 . 1 . . 1 3 . . . 16 7 . . Heat Transferred 12554 | . . 594 310 518 1132 349 . 334 950 1295 407 . 413 3478 2774 . . Parts Sabotaged . | . . . . . . . . . . . . . . . . . . Parts Stolen 2 | . . . . . . 2 . . . . . . . . . . . Parts Stripped . | . . . . . . . . . . . . . . . . . . Power Chain Reactions . | . . . . . . . . . . . . . . . . . . Missiles Intercepted . | . . . . . . . . . . . . . . . . . . Alert | -11 -10 -9 -8 -7 -7 -7 -7 -6 -6 -6 -6 -6 -6 -5 -4 -3 -3 ------- Run | Jun Mat Mat Mat Fac Low Low Zio Pro Fac Ext Cet Arc Hub Fac Fac Res Tes Peak Influence 804 | . 105 281 434 330 . . . . 212 752 804 545 706 584 658 617 483 Initial 420 | . . 44 118 119 . . . . 31 103 420 233 190 282 226 288 346 Average 266 | . 52 192 295 182 . . . . 86 215 585 344 413 329 228 410 382 Maximum Alert Level 3 | . . 1 2 1 . . . . 1 3 3 2 3 2 2 2 2 Low Security (%) 40 | 100 100 34 27 65 . . . . 84 60 . . 28 16 36 . . Level 1 37 | . . 65 55 35 . . . . 15 28 . 71 9 51 57 54 90 Level 2 20 | . . . 16 . . . . . . 9 78 28 61 31 6 45 9 Level 3 1 | . . . . . . . . . . . 21 . . . . . . Level 4 . | . . . . . . . . . . . . . . . . . . Level 5 . | . . . . . . . . . . . . . . . . . . High Security . | . . . . . . . . . . . . . . . . . . Max Security . | . . . . . . . . . . . . . . . . . . Squads Dispatched 25 | . . 1 . 1 . . . . . 2 . . 1 8 6 3 3 Investigation 5 | . . . . . . . . . . 2 . . . 1 2 . . Extermination 6 | . . . . 1 . . . . . . . . . 3 2 . . Reinforcement 9 | . . 1 . . . . . . . . . . 1 1 1 3 2 Assault 2 | . . . . . . . . . . . . . . . 1 . 1 Garrison 3 | . . . . . . . . . . . . . . 3 . . . Intercept . | . . . . . . . . . . . . . . . . . . Searches Triggered . | . . . . . . . . . . . . . . . . . . Construction Impeded 2 | . . . . . . . . . . . . . 1 . . . 1 Haulers Reinforced 2 | . . . . . . . . . . . . . . 1 . 1 . Active Scanning Responses . | . . . . . . . . . . . . . . . . . . Cargo Convoy Interrupts 1 | . . . . . . . . . . . . . . . 1 . . Stealth | -11 -10 -9 -8 -7 -7 -7 -7 -6 -6 -6 -6 -6 -6 -5 -4 -3 -3 --------- Run | Jun Mat Mat Mat Fac Low Low Zio Pro Fac Ext Cet Arc Hub Fac Fac Res Tes Distress Signals 21 | . 1 . 4 3 . . . . 1 . 2 . 4 1 1 3 1 Communications Jammed . | . . . . . . . . . . . . . . . . . . Distress Signals . | . . . . . . . . . . . . . . . . . . Times Spotted 286 | . 7 13 15 13 21 5 . 7 17 32 13 7 20 27 45 29 15 Peak Tracking Total 14 | . 5 4 6 7 9 3 . 4 4 8 5 7 12 5 14 14 9 Tactical Retreats 22 | . 1 1 2 1 3 . . . 2 1 . 1 1 2 1 5 1 Traps | -11 -10 -9 -8 -7 -7 -7 -7 -6 -6 -6 -6 -6 -6 -5 -4 -3 -3 ------- Run | Jun Mat Mat Mat Fac Low Low Zio Pro Fac Ext Cet Arc Hub Fac Fac Res Tes Traps Triggered 9 | . 1 . . 1 . . . . 2 2 . . . 1 . 2 . Indirectly . | . . . . . . . . . . . . . . . . . . Trap Hack Attempts . | . . . . . . . . . . . . . . . . . . Triggered . | . . . . . . . . . . . . . . . . . . Disarmed . | . . . . . . . . . . . . . . . . . . Reprogrammed . | . . . . . . . . . . . . . . . . . . Reused . | . . . . . . . . . . . . . . . . . . Traps Extracted . | . . . . . . . . . . . . . . . . . . Installed . | . . . . . . . . . . . . . . . . . . Triggered 7 | . . . . . 4 . . . . . . . . . 3 . . Machines | -11 -10 -9 -8 -7 -7 -7 -7 -6 -6 -6 -6 -6 -6 -5 -4 -3 -3 ---------- Run | Jun Mat Mat Mat Fac Low Low Zio Pro Fac Ext Cet Arc Hub Fac Fac Res Tes Machines Disabled 27 | . . . . . . 1 . . 2 3 . 1 10 1 7 . 2 Max in Single Turn 8 | . . . . . . 1 . . 1 1 . . 8 1 5 . 1 Garrison Access 2 | . . . . . . . . . 1 . . . . . 1 . . Network Hub 1 | . . . . . . . . . . . . . 1 . . . . Machines Repaired . | . . . . . . . . . . . . . . . . . . Machines Sabotaged . | . . . . . . . . . . . . . . . . . . Overloaded Fab Kills . | . . . . . . . . . . . . . . . . . . Hacking | -11 -10 -9 -8 -7 -7 -7 -7 -6 -6 -6 -6 -6 -6 -5 -4 -3 -3 --------- Run | Jun Mat Mat Mat Fac Low Low Zio Pro Fac Ext Cet Arc Hub Fac Fac Res Tes Machines Accessed 25 | . 1 1 . . . 1 . . 3 9 . 1 1 3 3 . 2 Terminals 18 | . 1 1 . . . . . . . 9 . . 1 3 1 . 2 Fabricators 2 | . . . . . . . . . 2 . . . . . . . . Repair Stations 1 | . . . . . . . . . . . . . . . 1 . . Recycling Units . | . . . . . . . . . . . . . . . . . . Scanalyzers . | . . . . . . . . . . . . . . . . . . Garrison Access 2 | . . . . . . . . . 1 . . . . . 1 . . Total Hacks 68 | . 3 1 . . . 1 . . 5 15 . 3 2 18 12 . 8 Successful 27 | . . . . . . 1 . . 2 7 . 3 . 7 4 . 3 Failed 41 | . 3 1 . . . . . . 3 8 . . 2 11 8 . 5 Catastrophic 12 | . . . . . . . . . . 4 . . 1 2 2 . 3 Database Lockouts . | . . . . . . . . . . . . . . . . . . Manual 34 | . 3 1 . . . . . . 2 1 1 . 2 11 5 . 8 Terminals 52 | . 3 1 . . . . . . . 15 . . 2 18 5 . 8 Fabricators 4 | . . . . . . . . . 4 . . . . . . . . Repair Stations 4 | . . . . . . . . . . . . . . . 4 . . Recycling Units . | . . . . . . . . . . . . . . . . . . Scanalyzers . | . . . . . . . . . . . . . . . . . . Garrison Access 4 | . . . . . . . . . 1 . . . . . 3 . . Terminal Hacks 16 | . . . . . . 1 . . . 6 . 3 . 4 1 . 1 Record 3 | . . . . . . . . . . . . 3 . . . . . Open Door 7 | . . . . . . 1 . . . 6 . . . . . . . Branch Access Points 1 | . . . . . . . . . . . . . . 1 . . . Unreport Threat 2 | . . . . . . . . . . . . . . . 1 . 1 Locate Traps 1 | . . . . . . . . . . . . . . 1 . . . Zone Layout 2 | . . . . . . . . . . . . . . 2 . . . Fabricator Hacks 1 | . . . . . . . . . 1 . . . . . . . . Load Schematic 1 | . . . . . . . . . 1 . . . . . . . . Repair Station Hacks 2 | . . . . . . . . . . . . . . . 2 . . Scan Component 2 | . . . . . . . . . . . . . . . 2 . . Recycling Unit Hacks . | . . . . . . . . . . . . . . . . . . Scanalyzer . | . . . . . . . . . . . . . . . . . . Garrison Access Hacks 1 | . . . . . . . . . 1 . . . . . . . . Seal Access 1 | . . . . . . . . . 1 . . . . . . . . Unauthorized Hacks 7 | . . . . . . . . . . 1 . . . 3 1 . 2 Terminals 7 | . . . . . . . . . . 1 . . . 3 1 . 2 Botnet 7 | . . . . . . . . . . 1 . . . 3 1 . 2 Fabricators . | . . . . . . . . . . . . . . . . . . Repair Stations . | . . . . . . . . . . . . . . . . . . Recycling Units . | . . . . . . . . . . . . . . . . . . Scanalyzers . | . . . . . . . . . . . . . . . . . . Garrison Access . | . . . . . . . . . . . . . . . . . . Data Cores Recovered 1 | . . 1 . . . . . . . . . . . . . . . Used . | . . . . . . . . . . . . . . . . . . Hacking Detections 21 | . 1 1 . . . . . . 2 7 1 . 1 3 3 . 2 Full Trace Events 5 | . . . . . . . . . . 2 . . . 1 2 . . Feedback Events . | . . . . . . . . . . . . . . . . . . Feedback Blocked . | . . . . . . . . . . . . . . . . . . Robot Schematics Acquired 3 | . . . . . . . 3 . . . . . . . . . . Robots Built . | . . . . . . . . . . . . . . . . . . Authchips . | . . . . . . . . . . . . . . . . . . Time . | . . . . . . . . . . . . . . . . . . Total Robot Build Rating . | . . . . . . . . . . . . . . . . . . Part Schematics Acquired 16 | . . . . . . . 16 . . . . . . . . . . Parts Built . | . . . . . . . . . . . . . . . . . . Authchips . | . . . . . . . . . . . . . . . . . . Time . | . . . . . . . . . . . . . . . . . . Total Part Build Rating . | . . . . . . . . . . . . . . . . . . Parts Repaired . | . . . . . . . . . . . . . . . . . . Time . | . . . . . . . . . . . . . . . . . . Parts Recycled . | . . . . . . . . . . . . . . . . . . Recycled Matter . | . . . . . . . . . . . . . . . . . . Retrieved Matter . | . . . . . . . . . . . . . . . . . . Retrieved Components . | . . . . . . . . . . . . . . . . . . Parts Scanalyzed . | . . . . . . . . . . . . . . . . . . Part Schematics Acquired . | . . . . . . . . . . . . . . . . . . Parts Damaged . | . . . . . . . . . . . . . . . . . . Bothacking | -11 -10 -9 -8 -7 -7 -7 -7 -6 -6 -6 -6 -6 -6 -5 -4 -3 -3 ------------ Run | Jun Mat Mat Mat Fac Low Low Zio Pro Fac Ext Cet Arc Hub Fac Fac Res Tes Used RIF Installer . | . . . . . . . . . . . . . . . . . . Robots Hacked . | . . . . . . . . . . . . . . . . . . Non-combat . | . . . . . . . . . . . . . . . . . . Combat . | . . . . . . . . . . . . . . . . . . Robot Hacks Applied . | . . . . . . . . . . . . . . . . . . Relay Couplers Released 4 | . . . . . . . . . 3 . . . . . 1 . . Machine Destruction 1 | . . . . . . . . . . . . . . . 1 . . Programmers 3 | . . . . . . . . . 3 . . . . . . . . Fabnet Peak Effective % . | . . . . . . . . . . . . . . . . . . Robots Rewired 12 | . . . . . 2 . . . . 10 . . . . . . . Allies Hacked . | . . . . . . . . . . . . . . . . . . Hacks Repelled . | . . . . . . . . . . . . . . . . . . Allies | -11 -10 -9 -8 -7 -7 -7 -7 -6 -6 -6 -6 -6 -6 -5 -4 -3 -3 -------- Run | Jun Mat Mat Mat Fac Low Low Zio Pro Fac Ext Cet Arc Hub Fac Fac Res Tes Total Allies 26 | . . . . . 2 . . . . 19 5 . . . . . . Largest Group 11 | . . . . . 2 . . . . 11 9 4 3 . . . . Highest-Rated Group 691 | . . . . . 48 . . . . 407 691 384 288 . . . . Highest-Rated Ally 159 | . . . . . 32 . . . . 159 159 96 96 . . . . Total Orders 4 | . . . . . . . . . . . 3 . 1 . . . . STAY 3 | . . . . . . . . . . . 2 . 1 . . . . FOLLOW 1 | . . . . . . . . . . . 1 . . . . . . Ally Attacks 307 | . . . . . 10 . . . . 178 59 30 30 . . . . Total Damage 7890 | . . . . . 272 . . . . 3656 1629 1076 1257 . . . . Kills 62 | . . . . . 3 . . . . 27 13 8 11 . . . . Allies Corrupted . | . . . . . . . . . . . . . . . . . . Allies Melted 1 | . . . . . . . . . . 1 . . . . . . . Intel | -11 -10 -9 -8 -7 -7 -7 -7 -6 -6 -6 -6 -6 -6 -5 -4 -3 -3 ------- Run | Jun Mat Mat Mat Fac Low Low Zio Pro Fac Ext Cet Arc Hub Fac Fac Res Tes Robot Analysis Total . | . . . . . . . . . . . . . . . . . . Derelict Logs Recovered 5 | . . . . . . . 2 3 . . . . . . . . . Drone Launches . | . . . . . . . . . . . . . . . . . . Drone Recoveries . | . . . . . . . . . . . . . . . . . . Exploration | -11 -10 -9 -8 -7 -7 -7 -7 -6 -6 -6 -6 -6 -6 -5 -4 -3 -3 ------------- Run | Jun Mat Mat Mat Fac Low Low Zio Pro Fac Ext Cet Arc Hub Fac Fac Res Tes Turns Passed 11875 | 55 193 393 455 500 627 795 1710 577 1074 1308 417 77 685 1439 967 262 341 Spaces Moved 6231 | 43 189 256 267 292 230 320 708 229 720 713 163 40 341 583 352 484 301 Core 590 | 2 . . . . . . . . . . . . . . 4 352 232 Treads 2397 | . . . . . 192 320 708 181 . . 46 40 320 318 272 . . Legs 35 | . . . . . . . . . . . . . . . 35 . . Wheels 2976 | 41 189 256 267 292 38 . . 48 720 713 117 . 21 265 9 . . Hover . | . . . . . . . . . . . . . . . . . . Flight 233 | . . . . . . . . . . . . . . . 32 132 69 Fastest Speed 30 | 50 80 95 130 145 145 240 240 140 115 130 130 160 115 145 30 30 37 Average Speed 156 | 87 94 112 130 145 224 240 240 221 129 130 138 160 157 202 206 44 65 Slowest Speed 320 | 95 95 130 130 145 240 240 240 240 130 130 160 160 160 240 320 50 200 Overloaded Moves . | . . . . . . . . . . . . . . . . . . Propulsion Burnouts . | . . . . . . . . . . . . . . . . . . Robots Hopped 12 | . . . . . . . . . . . . . . . 6 2 4 Cave-ins Triggered . | . . . . . . . . . . . . . . . . . . Exploration Rate (%) 37 | 3 42 28 32 8 40 53 80 42 24 79 60 75 32 18 12 19 32 Regions Visited 17 Branch Regions 9 Pre-discovered Areas 1 | . . . . . . . 1 . . . . . . . . . . Known Exits Taken 1 | . . . . . . . . . 1 . . . . . . . . Unknown Exits Taken 16 | 1 1 1 1 1 1 1 1 1 . 1 1 1 1 1 1 1 . Scrap Searched 4 | . . . . . 2 1 . 1 . . . . . . . . . Spaces Dug 5 | . . . . . . . . . 1 . . . 1 . . 2 1 Terrain Destroyed 295 | . . . . . . 1 . 4 3 3 1 . 162 5 96 2 18 Melee 2 | . . . . . . . . . 1 . . . 1 . . . . Projectile 47 | . . . . . . 1 . 4 2 3 1 . 7 5 16 2 6 AOE 234 | . . . . . . . . . . . . . 154 . 80 . . Terrain Rammed . | . . . . . . . . . . . . . . . . . . Walls Destroyed . | . . . . . . . . . . . . . . . . . . Machines Disabled . | . . . . . . . . . . . . . . . . . . Actions | -11 -10 -9 -8 -7 -7 -7 -7 -6 -6 -6 -6 -6 -6 -5 -4 -3 -3 --------- Run | Jun Mat Mat Mat Fac Low Low Zio Pro Fac Ext Cet Arc Hub Fac Fac Res Tes Total 7742 | 57 196 334 334 343 295 336 722 258 813 1047 341 53 442 728 497 526 420 Wait 669 | 3 2 20 25 10 18 3 . 8 30 130 142 14 62 48 44 22 88 Move 6193 | 42 188 255 266 291 229 319 707 228 719 712 162 39 340 582 342 479 293 Hop 9 | . . . . . . . . . . . . . . . 3 2 4 Pick Up 87 | 6 . 13 6 6 5 1 3 2 7 1 7 . 2 13 12 3 . Fast Attach 74 | 6 3 6 4 3 . 3 1 . 7 . 5 . 3 9 15 2 7 Attach 59 | . . 1 2 2 5 . . 4 4 . . . 7 9 16 6 3 Detach 34 | . . 3 3 1 1 . . . 3 . 1 . 2 3 9 4 4 Swap 47 | . . 5 4 2 2 1 3 . 7 4 2 . 4 6 7 . . Drop 91 | . . 16 6 8 2 4 7 . 8 4 14 . 2 3 10 2 5 Fire 257 | . 3 15 18 12 19 5 1 16 19 16 8 . 14 55 38 2 16 Melee 8 | . . . . . . . . . 1 3 . . 4 . . . . Ram 3 | . . . . . . . . . . . . . 1 . . 2 . Kick . | . . . . . . . . . . . . . . . . . . Crush 4 | . . . . . . . . . . . . . 1 . 1 2 . Escape Stasis 55 | . . . . 8 . . . . 8 39 . . . . . . . Rewire 152 | . . . . . 14 . . . . 138 . . . . . . . Trap . | . . . . . . . . . . . . . . . . . . Miscellaneous . | . . . . . . . . . . . . . . . . . . Route ------- -11/Junkyard -10/Materials -9/Materials (discovered 2 exits: [*Mat] / [*Min]) -8/Materials -7/Factory -7/Lower Caves -7/Lower Caves -7/Zion -6/Proximity Caves -6/Factory (discovered 2 exits: [*Low] / *Ext) -6/Extension (discovered 2 exits: *Fac / *Cet) -6/Cetus (discovered 2 exits: *Fac / *Arc) -6/Archives (discovered 2 exits: *Hub x2) -6/Hub_04(d) -5/Factory (discovered 3 exits: *Fac / Upp x2) -4/Factory -3/Research -3/Testing (discovered 1 exit: [*Res]) History --------- Turn | Location | Event 15 | -11/Junkyard | Discovered new exit (range 16) 56 | -11/Junkyard | Entered Materials 235 | -10/Materials | Discovered new exit (range 15) 249 | -10/Materials | Entered another Materials area 249 | -9/Materials | Evolved 2 slots: Weapon x2 439 | -9/Materials | Discovered new exit (range 7) 552 | -9/Materials | Build established: Gunner 640 | -9/Materials | Discovered new exit (range 3) 642 | -9/Materials | Entered another Materials area 642 | -8/Materials | Evolved 2 slots: Weapon x2 1015 | -8/Materials | Build established: Executioner 1063 | -8/Materials | Discovered new exit (range 13) 1097 | -8/Materials | Entered Factory 1097 | -7/Factory | Evolved 2 slots: Utility x1, Weapon x1 1558 | -7/Factory | Discovered new exit (range 5) 1597 | -7/Factory | Entered Lower Caves 1677 | -7/Lower Caves | Build established: Scavenger-Executioner 1816 | -7/Lower Caves | Attracted the attention of an 0b10 outpost 2012 | -7/Lower Caves | Ambushed by wild Derelicts 2146 | -7/Lower Caves | Build established: Executioner 2189 | -7/Lower Caves | Encountered a Warlord checkpoint 2192 | -7/Lower Caves | Discovered new exit (range 12) 2224 | -7/Lower Caves | Entered another Lower Caves area 2687 | -7/Lower Caves | Discovered new exit (range 3) 3019 | -7/Lower Caves | Entered Zion 3195 | -7/Zion | Build established: Scavenger-Executioner 3418 | -7/Zion | Learned Factory terminal intel 3734 | -7/Zion | Learned location of Extension (-6) 3816 | -7/Zion | Received a hallucinogenic algorithm 4696 | -7/Zion | Discovered new exit (range 15) 4705 | -7/Zion | Build established: Derelict-Executioner 4729 | -7/Zion | Entered Proximity Caves 4949 | -6/Proximity Caves | Learned Factory emergency access door positions 5112 | -6/Proximity Caves | Learned Factory terminal intel 5239 | -6/Proximity Caves | Lost 5 parts (1p2n2w) 5296 | -6/Proximity Caves | Discovered new exit (range 6) 5306 | -6/Proximity Caves | Entered Factory 5306 | -6/Factory | Evolved 2 slots: Propulsion x1, Utility x1 5307 | -6/Factory | Identified exit to Extension 5309 | -6/Factory | Loaded intel: 27 terminal locations 5536 | -6/Factory | Discovered new exit (range 9) 6380 | -6/Factory | Entered Extension 6634 | -6/Extension | Rescued a captive Derelict 6823 | -6/Extension | Rescued a captive Derelict 6824 | -6/Extension | Rescued a captive Derelict 6840 | -6/Extension | Rescued a captive Derelict 6860 | -6/Extension | Rescued A7 7221 | -6/Extension | Spotted B-75 Beast 7223 | -6/Extension | Spotted B-75 Beast 7250 | -6/Extension | Allies destroyed B-75 Beast 7379 | -6/Extension | Discovered new exit (range 21) 7381 | -6/Extension | Discovered new exit (range 21) 7521 | -6/Extension | Rescued a captive Derelict 7522 | -6/Extension | Rescued a captive Derelict 7542 | -6/Extension | Rescued a captive Derelict 7544 | -6/Extension | Rescued a captive Derelict 7675 | -6/Extension | Disrupted transfer network 7688 | -6/Extension | Entered Cetus 7688 | -6/Cetus | Accompanied by 8 allies (A7) 7693 | -6/Cetus | Acquired a Cetus Manufacturing Module code from A7 7701 | -6/Cetus | Spotted Cetus Guard 7701 | -6/Cetus | Spotted Cetus Guard 7704 | -6/Cetus | Spotted Cetus Guard 7716 | -6/Cetus | Allies destroyed Cetus Guard 7716 | -6/Cetus | Spotted Cetus Guard 7719 | -6/Cetus | Allies destroyed Cetus Guard 7725 | -6/Cetus | Allies destroyed Cetus Guard 7731 | -6/Cetus | Destroyed Cetus Guard 7818 | -6/Cetus | Started Cetus Manufacturing Module 7826 | -6/Cetus | Discovered new exit (range 22) 7843 | -6/Cetus | Manufactured an Enhanced Grunt 7868 | -6/Cetus | Manufactured an Enhanced Grunt 7893 | -6/Cetus | Manufactured an Enhanced Grunt 7918 | -6/Cetus | Manufactured an Enhanced Grunt 7943 | -6/Cetus | Manufactured an Enhanced Grunt 7974 | -6/Cetus | Spotted Cetus Guard 7976 | -6/Cetus | Spotted Cetus Guard 7977 | -6/Cetus | Spotted Cetus Guard 7987 | -6/Cetus | Allies destroyed Cetus Guard 7987 | -6/Cetus | Spotted Cetus Guard 7990 | -6/Cetus | Discovered new exit (range 21) 7996 | -6/Cetus | Destroyed Cetus Guard 7996 | -6/Cetus | Destroyed Cetus Guard 7998 | -6/Cetus | Allies destroyed Cetus Guard 8013 | -6/Cetus | Met Revision 17 8105 | -6/Cetus | Entered Archives 8105 | -6/Archives | Accompanied by 5 allies (A7) 8125 | -6/Archives | Met Zhirov 8125 | -6/Archives | Discovered new exit (range 22) 8131 | -6/Archives | Reinforcements dispatched to Archives 8131 | -6/Archives | Discovered new exit (range 22) 8142 | -6/Archives | Read partially decrypted archive contents 8176 | -6/Archives | Reinforcements dispatched to Archives 8182 | -6/Archives | Entered Hub_04(d) 8182 | -6/Hub_04(d) | Accompanied by 3 allies 8304 | -6/Hub_04(d) | Build established: Scavenger-Executioner 8446 | -6/Hub_04(d) | Discovered new exit (range 17) 8747 | -6/Hub_04(d) | Network Hub disabled 8769 | -6/Hub_04(d) | Spotted Lightning 8773 | -6/Hub_04(d) | Spotted Lightning 8773 | -6/Hub_04(d) | Spotted Lightning 8773 | -6/Hub_04(d) | Spotted Lightning 8774 | -6/Hub_04(d) | Spotted Lightning 8778 | -6/Hub_04(d) | System corruption reached 10% 8786 | -6/Hub_04(d) | Destroyed Lightning 8802 | -6/Hub_04(d) | System corruption reached 30% 8817 | -6/Hub_04(d) | Spotted Lightning 8829 | -6/Hub_04(d) | Found Prototype Energy Cannon 8837 | -6/Hub_04(d) | Found Prototype Processor 8837 | -6/Hub_04(d) | Identified Exp. Targeting Computer 8867 | -6/Hub_04(d) | Entered Factory 8867 | -5/Factory | Evolved 2 slots: Power x1, Propulsion x1 8868 | -5/Factory | Loaded intel: 26 terminal locations 8869 | -5/Factory | Identified EMDS 8885 | -5/Factory | Lost 14 parts (1p2n3u8w) 9170 | -5/Factory | Build established: Scavenger-Mutant 9680 | -5/Factory | Identified exit to Upper Caves 9837 | -5/Factory | Garrison activated, responded to threat 10116 | -5/Factory | Lost 4 parts (1n3w) 10133 | -5/Factory | Discovered new exit (range 8) 10306 | -5/Factory | Entered another Factory area 10306 | -4/Factory | Evolved 2 slots: Utility x2 10716 | -4/Factory | Build established: Scavenger-Executioner 10777 | -4/Factory | Found Prototype Device 10777 | -4/Factory | Identified Exp. ECM Suite 10875 | -4/Factory | Found Hvy. Reactive Plating 10949 | -4/Factory | Found Hvy. Reactive Plating 11126 | -4/Factory | Destroyed 10 combat bots 11132 | -4/Factory | Lost 7 parts (1n6w) 11140 | -4/Factory | Cargo convoy interrupted 11229 | -4/Factory | Spotted Executioner 11230 | -4/Factory | Spotted Striker 11257 | -4/Factory | Released all parts (9) 11260 | -4/Factory | Discovered new exit (range 10) 11263 | -4/Factory | Core integrity fell below 50% 11273 | -4/Factory | Entered Research 11273 | -3/Research | Evolved 2 slots: Utility x2 11277 | -3/Research | Spotted B-86 Titan 11291 | -3/Research | Lost 13 parts (2p3n1u7w) 11380 | -3/Research | Core integrity fell below 50% 11473 | -3/Research | Revision forces began assault on 0b10 11494 | -3/Research | Build established: Mutant 11510 | -3/Research | Core integrity fell below 20% 11533 | -3/Research | Discovered new exit (range 4) 11535 | -3/Research | Entered Testing 11548 | -3/Testing | Protovariant out of control (PY-CT5FAMV2IN) 11638 | -3/Testing | Found Prototype Ballistic Cannon 11638 | -3/Testing | Identified Perforator 11687 | -3/Testing | Spotted Striker 11848 | -3/Testing | Spotted Superbehemoth 11874 | -3/Testing | Discovered new exit (range 15) 11876 | -3/Testing | Destroyed by X-77 Beamer with Gatling Laser Last Messages --------------- 11841_ Dropped Exp. Myomer Leg. 11841_ U-05 Engineer builds a Wall. 11842_ Acquired Unknown Flight Unit. 11842_ Identified Xenon Bombardment Thruster. 11843_ Acquired Xenon Bombardment Thruster. 11846_ U-05 Engineer builds a Wall. 11854_ Connecting with Terminal... >>Trojan(Botnet) Trojan loaded successfully. Testing... Terminal linked with 1 system. Awaiting botnet instructions. >>Alert(Purge) Purged threat record, alert level lowered. 11861_ Xenon Bombardment Thruster destroyed. 11864_ Critical hit (Burn: +50). 11868_ Acquired Q-thruster. 11873_ W-44 Eye sends out distress signal. 11874_ EXIT=FOUND 11876_ Q-thruster destroyed. Map ----- +----------------------------------------------------+ | | | | | | | | | ####?????????????????????????????????????????????? | | "" #?????????????????????????????????????????????? | | "" #?????????????????????????????????????????????? | | #?????????????????????????????????????????????? | | #?????????????????????????????????????????????? | | ####?????????????????????????????????????????????? | | ?????????????????????????????????????????????????? | | #????????????????????????????????????????????????? | | #????????????????????????????????????????????????? | | #????????????????????????????????????????????????? | | ?????????????????????????????????????????????????? | | ?????????????????????????????????????????????????? | | ?????????????????###+##??????????????????????????? | | ?????????????????# #??????????????????????????? | | ?????????????????# #??????????????????????????? | | ?????????????????# ####???????????????????????? | | ?????????????????+ #???????????????????????? | | ?????????????????# #??????????#????????????? | | ?????????????????# ????????? x#?????????? | | ?????????????????# x########## < x#?????????? | | ################## x #?????????? | | @ #????????????? | | #????????????? | | #####+####+####### #????????????? | | #?? # #?# ########## #????????????? | | ## """ %# #?# #??????????? #????????????? | | ## """ # #?# #??????????????????????????? | | ## """ # =! #?# #??????????????????????????? | | ## # = #?# #??????????????????????????? | | ## !# #?# #??????????????????????????? | | ################?# #??????????????????????????? | | "#?######????????# #??????????????????????????? | | "#?"""""#????????# #??????????????????????????? | | # " " "#????????# #??????????????????????????? | | # "#????????# #??????????????????????????? | | + "???????????# ??????????????????????????? | | # "???????????#! ??????????????????????????? | | # " "???????????# ""??????????????????????????? | | ##?###???????????? "????????????????????????????? | | ?????????????????????????????????????????????????? | | ?????????????????????????????????????????????????? | | ?????????????????????????????????????????????????? | | ?????????????????????????????????????????????????? | | ?????????????????????????????????????????????????? | | ?????????????????????????????????????????????????? | | ?????????????????????????????????????????????????? | +----------------------------------------------------+ Best States ------------- Heat Dissipation 91 Coolant Potential 80 Energy Generation 37 Energy Capacity 450 Matter Stores 300 Matter Capacity 300 Sight Range 22 Terrain Scan Density 10 Armor Coverage 1200 Resistance: KI 40 Resistance: TH 25 Evasion (%) 64 Targeting Accuracy 12 Launcher Accuracy 40 Recoil Reduction 4 Salvage Targeting 2 Item Schematics ----------------- Mak. Armor Plating | -7/Zion | Archive 0b10 Decoder Chip [Looter] | -7/Zion | Archive Microactuators | -7/Zion | Archive Phase Cannon | -7/Zion | Archive Cloaking Device | -7/Zion | Archive Imp. Medium Armor Plating | -7/Zion | Archive Hvy. Rocket Launcher | -7/Zion | Archive Imp. Launcher Guidance Computer | -7/Zion | Archive Fusion Compressor | -7/Zion | Archive Force Booster | -7/Zion | Archive Hvy. Pick | -7/Zion | Archive Gravmag System | -7/Zion | Archive Beamcaster | -7/Zion | Archive Flak Gun | -7/Zion | Archive Adv. System Shield | -7/Zion | Archive Tiamat Missile Launcher | -7/Zion | Archive Robot Schematics ------------------ K-01 Serf | -7/Zion | Archive T-07 Excavator | -7/Zion | Archive G-47 Trooper | -7/Zion | Archive Fabricated ------------ Nothing Alien Tech Used ----------------- None Achievements -------------- Executioner Challenges ------------ None Game ------ Seed MetafiberPhysicsNukerbomber Manual? 0 Play Time 01:23:37 Cumulative 382.9 hours Start 2023.11.04 @ 13:45:38 End 2023.11.04 @ 15:09:27 Sessions 1 Manual Loads 0 Difficulty Rogue Special Mode None Game No. 267 Rogue 267 Adventurer 0 Explorer 0 Win Type - Total 30 Types 26/0/3/1/0/0/0/0/0 Lore% 72 Gallery% 86 Achievement% 70 Wizard Run 0 Options --------- ASCII 0 Keyboard 1 Movement Numpad Keybinds 0 Fullscreen 2 Font 18/SmallcapsGlow Map View 76x50 Tactical HUD 1 Map Filters NONE Filters NONE Steam 1 RUN: bd6261cd-ba99-4c34-8c90-7bd2d5822ce6